Cogmind - Beta 16 @@@ ROGUE MODE // 2025.11.14 @ 19:11:27 Player: ChromeKnight Result: Core destroyed Performance ------------- Evolutions (8) 4000 Regions Visited (16) 3200 Robots Destroyed (26) 130 Value Destroyed (1292) 1292 Prototype IDs (17) 340 Alien Tech Used (0) 0 Bonus (6619) 6619 TOTAL SCORE: 15581 Bonus ------- Pacifist 470 Follower Combat Kills 218 Entered DSFs 1000 Met Warlord at Base 500 MAIN.C Attacked Warlord 500 Met Warlord at Research 2000 Invited to Help at Command 2000 Friendly Fire -69 Cogmind --------- Core Integrity 0/1450 Matter 152/300 Energy 340/440 System Corruption 2% Temperature Critical (553) Movement Walking (106) Location -2/Quarantine Parts ------- > --- POWER (2) -------- Quantum Reactor Light Quantum Reactor > --- PROPULSION (10) -- Enhanced Biometal Leg Enhanced Biometal Leg Centrium Leg Centrium Leg Centrium Leg Centrium Leg Centrium Leg Centrium Leg High-density Centrium Leg > --- UTILITY (9) ------ Medium Storage Unit Advanced Sensor Array Advanced Signal Interpreter Experimental Core Analyzer Experimental Core Analyzer Centrium Light Armor Plating Centrium Light Armor Plating Graphene Brace > --- WEAPON (2) ------- Helical Railgun > --- INVENTORY (10) --- Biometal Leg Enhanced Biometal Leg Enhanced Biometal Leg Enhanced Biometal Leg Advanced Transmission Jammer Centrium Light Armor Plating Helical Railgun Plasma Lance Peak State ------------ > --- POWER ------------ Quantum Reactor Light Quantum Reactor > --- PROPULSION ------- Enhanced Biometal Leg Enhanced Biometal Leg Enhanced Biometal Leg Centrium Leg Centrium Leg Centrium Leg Centrium Leg Centrium Leg Centrium Leg High-density Centrium Leg > --- UTILITY ---------- Medium Storage Unit Advanced Sensor Array Advanced Signal Interpreter Advanced Target Analyzer Experimental Core Analyzer Experimental Core Analyzer Centrium Light Armor Plating Advanced Powered Armor Graphene Brace > --- WEAPON ----------- Helical Railgun Helical Railgun > --- INVENTORY -------- Biometal Leg Enhanced Biometal Leg Enhanced Biometal Leg Advanced Transmission Jammer Improved Reaction Control System Centrium Light Armor Plating Helical Railgun Plasma Lance [Rating: 195] Favorites ----------- Power Vortex Chain Reactor Engine Light Ion Engine Power Core Neutrino Core Reactor Vortex Chain Reactor Propulsion Cooled Impulse Thruster Leg Centrium Leg Hover Unit Airjet Flight Unit Cooled Impulse Thruster Utility Advanced Signal Interpreter Device Advanced Sensor Array Storage Medium Storage Unit Processor Advanced Signal Interpreter Hackware Ghost Barrier Protection Advanced Powered Armor Weapon Helical Railgun Energy Cannon Vortex Cannon Ballistic Gun Helical Railgun Launcher Grenade Launcher Impact Weapon Powered Hammer Slashing Weapon Great Axe Piercing Weapon Plasma Lance Build | -11 -10 -9 -8 -7 -6 -6 -5 -5 -5 -4 -4 -4 -3 -3 -2 -2 ------- Run | Yrd Mat Mat Mat Fac Fac DSF Fac Upp War Pro Fac DSF Res Tes Res Qua Slots Evolved 16 | . . 2 2 2 2 . 2 . . . 2 . 2 . 2 . Power 1 | . . . . . . . 1 . . . . . . . . . Propulsion 8 | . . 1 1 1 1 . 1 . . . 1 . 2 . . . Utility 7 | . . 1 1 1 1 . . . . . 1 . . . 2 . Weapon . | . . . . . . . . . . . . . . . . . Parts Attached 92 | . . . 5 8 2 . . 12 12 3 3 3 2 . 41 1 Power 9 | . . . . 1 . . . 2 2 . . . . . 4 . Engine 1 | . . . . 1 . . . . . . . . . . . . Core 3 | . . . . . . . . 2 1 . . . . . . . Reactor 5 | . . . . . . . . . 1 . . . . . 4 . Propulsion 34 | . . . 4 3 . . . 5 2 . . 2 1 . 17 . Treads . | . . . . . . . . . . . . . . . . . Leg 10 | . . . . . . . . . . . . . . . 10 . Wheel . | . . . . . . . . . . . . . . . . . Hover 1 | . . . 1 . . . . . . . . . . . . . Flight 23 | . . . 3 3 . . . 5 2 . . 2 1 . 7 . Utility 35 | . . . . 3 2 . . 2 6 1 3 1 . . 16 1 Device 15 | . . . . 1 . . . 2 4 1 1 . . . 6 . Storage 2 | . . . . 1 . . . . . . . 1 . . . . Processor 11 | . . . . 1 2 . . . . . 1 . . . 7 . Hackware 2 | . . . . . . . . . 1 . 1 . . . . . Protection 5 | . . . . . . . . . 1 . . . . . 3 1 Artifact . | . . . . . . . . . . . . . . . . . Weapon 14 | . . . 1 1 . . . 3 2 2 . . 1 . 4 . Energy Gun . | . . . . . . . . . . . . . . . . . Energy Cannon 3 | . . . . . . . . . 1 . . . 1 . 1 . Ballistic Gun 3 | . . . . . . . . . . 1 . . . . 2 . Ballistic Cannon . | . . . . . . . . . . . . . . . . . Launcher 3 | . . . 1 . . . . 2 . . . . . . . . Special Weapon . | . . . . . . . . . . . . . . . . . Impact Weapon 2 | . . . . 1 . . . . . 1 . . . . . . Slashing Weapon 2 | . . . . . . . . 1 1 . . . . . . . Piercing Weapon 1 | . . . . . . . . . . . . . . . 1 . Special Melee Weapon . | . . . . . . . . . . . . . . . . . Unidentified Prototypes 17 | . . . . 1 . . . . 7 . . . . . 9 . Parts Lost 10 | . . . 2 2 . 1 . 1 . . . . . . . 4 Power 1 | . . . . 1 . . . . . . . . . . . . Propulsion 4 | . . . 2 . . 1 . . . . . . . . . 1 Utility 4 | . . . . 1 . . . 1 . . . . . . . 2 Weapon 1 | . . . . . . . . . . . . . . . . 1 Highest Loss Streak 4 | . . . 2 2 . 1 . 1 . . . . . . . 4 To Critical Strikes . | . . . . . . . . . . . . . . . . . Average Backups 7 | . 1 2 3 3 5 6 6 5 6 5 4 5 5 8 9 9 Power . | . . . . . . . . . . . . . . 2 1 . Propulsion 2 | . . . . . . . . . . . . . . . 5 4 Utility 2 | . 1 1 1 1 2 2 2 1 2 3 3 4 4 5 1 3 Weapon 1 | . . 1 1 1 3 4 4 3 3 1 1 1 . . . 2 Tool/Special . | . . . . . . . . . . . . . . . . . Unused Backups 20 | . . . 1 . . . . . 4 . . . . . 8 7 Power 2 | . . . . . . . . . . . . . . . 2 . Propulsion 7 | . . . 1 . . . . . . . . . . . 2 4 Utility 9 | . . . . . . . . . 4 . . . . . 4 1 Weapon 2 | . . . . . . . . . . . . . . . . 2 Tool/Special . | . . . . . . . . . . . . . . . . . Average Slot Usage (%) 73 | . . . 4 29 39 44 29 56 81 82 82 78 78 80 88 94 Reactor 3 | . . . . . . . . . 2 5 5 5 4 4 4 8 Leg 6 | . . . . . . . . . . . . . . . 7 42 Flight 26 | . . . 3 15 20 18 5 20 38 41 36 33 33 33 31 . Device 14 | . . . . 5 . . . 6 16 23 21 18 13 14 19 8 Storage 3 | . . . . 5 6 6 5 5 3 . . 1 4 4 4 4 Processor 7 | . . . . . 13 20 17 13 8 5 4 5 4 4 9 13 Hackware 2 | . . . . . . . . . 2 5 10 10 9 9 2 . Protection 1 | . . . . . . . . . . . . . . . . 8 Ballistic Gun 2 | . . . . . . . . . . . . . . . 4 8 Peak Build Rating 195 | . . . 3 20 26 26 19 47 94 100 103 121 151 155 195 193 Average Rating 121 | . . . 1 12 23 23 19 38 71 95 101 108 149 152 178 192 On Entrance 60 | . . . . . 17 26 15 19 45 94 98 103 121 151 154 193 Avg Prop Armor Cover (%) 3 | . . . . . . . . . 3 . . . . . 3 . Naked Turns 131 | . 29 57 45 . . . . . . . . . . . . . Heaviest Build 94 | . . . . 9 5 5 5 28 49 45 42 47 66 66 94 94 Greatest Support 302 | 3 3 3 8 15 15 15 6 29 45 45 45 65 82 82 302 302 Greatest Overweight (x) 5 | . . . . . . 1 . 1 1 . . . . . 5 . Average Overweight (x) . | . . . . . . . . . . . . . . . . . Largest Inventory Capacity 10 | 5 5 5 5 8 8 8 8 8 8 5 5 10 10 10 10 10 Average Capacity 8 | 5 5 5 5 7 8 8 8 8 6 5 5 6 10 10 10 10 Most Carried 10 | 1 2 2 5 5 6 7 6 6 8 5 5 9 7 10 10 10 Average Carried 7 | . 1 2 4 3 5 6 6 5 6 4 4 5 5 8 9 9 Final Capacity 10 | 5 5 5 5 8 8 8 8 8 5 5 5 10 10 10 10 10 Final Carried 10 | 1 2 2 5 5 6 7 6 6 5 5 5 9 6 10 10 8 Class Distribution -------------------- 33% | Hacker-Sprinter 19% | Scavenger-Sprinter 16% | Scavenger-Mutant 16% | Mutant 5% | Commander-Sprinter 3% | Sprinter 3% | Infiltrator-Sprinter Dominant Class ---------------- Mutant | -10/Materials Mutant | -9/Materials Mutant | -8/Materials Mutant | -7/Factory Mutant | -6/Factory Sprinter | -6/DSF Sprinter | -5/Factory Mutant | -5/Upper Caves Commander-Sprinter | -5/Warlord Hacker-Sprinter | -4/Proximity Caves Hacker-Sprinter | -4/Factory Hacker-Sprinter | -4/DSF Hacker-Sprinter | -3/Research Hacker-Sprinter | -3/Testing Scavenger-Sprinter | -2/Research Scavenger-Mutant | -2/Quarantine Resources | -11 -10 -9 -8 -7 -6 -6 -5 -5 -5 -4 -4 -4 -3 -3 -2 -2 ----------- Run | Yrd Mat Mat Mat Fac Fac DSF Fac Upp War Pro Fac DSF Res Tes Res Qua Matter Collected 1727 | 47 . . 22 109 . . . 357 . 130 . . . . 900 162 Remotely . | . . . . . . . . . . . . . . . . . Salvage Created 1350 | . . . 27 . . . . 461 . . 14 . . . 504 344 Parts 49 | . . . 9 . . . . 15 . . . . . . 12 13 Haulers Intercepted 1 | . . . . . . . . . . . . . . . 1 . Recyclers Shooed . | . . . . . . . . . . . . . . . . . Parts Field Recycled . | . . . . . . . . . . . . . . . . . Retrieved Matter . | . . . . . . . . . . . . . . . . . Parts Self-Destructed 5 | . . . . . . . . 5 . . . . . . . . Prevented 1 | . . . . . . . . . . 1 . . . . . . Parts Restored . | . . . . . . . . . . . . . . . . . Kills | -11 -10 -9 -8 -7 -6 -6 -5 -5 -5 -4 -4 -4 -3 -3 -2 -2 ------- Run | Yrd Mat Mat Mat Fac Fac DSF Fac Upp War Pro Fac DSF Res Tes Res Qua Combat Hostiles Destroyed 23 | . . . 4 . . . . 9 . . . . . . 6 4 Melee 1 | . . . . . . . . . . . . . . . 1 . Guns 5 | . . . . . . . . . . . . . . . 2 3 Cannons 2 | . . . . . . . . . . . . . . . 2 . AOE 13 | . . . 4 . . . . 9 . . . . . . . . Classes Destroyed 11 | . . . 2 . . . . 2 . . . . . . 6 1 Worker 2 | . . . 1 . . . . . . . 1 . . . . . Hauler 1 | . . . . . . . . . . . . . . . 1 . Swarmer 13 | . . . 4 . . . . 9 . . . . . . . . Grunt 1 | . . . . . . . . . . . . . . . 1 . Duelist 1 | . . . . . . . . . . . . . . . 1 . Sentry 3 | . . . . . . . . . . . . . . . 1 2 Hunter 2 | . . . . . . . . . . . . . . . . 2 Programmer 2 | . . . . . . . . . . . . . . . 2 . Striker 1 | . . . . . . . . . . . . . . . 1 . Packrat 2 | . . . . . . . . 2 . . . . . . . . Samaritan 3 | . . . . . . . . 3 . . . . . . . . Best Kill Streak 5 | . . . 5 . . . . 5 . . 1 . . . 2 3 Combat Bots Only 5 | . . . 4 . . . . 5 . . . . . . 2 3 Max Kills in Single Turn 5 | . . . 4 . . . . 5 . . 1 . . . 1 1 Gunslinging . | . . . . . . . . . . . . . . . . . Exploded 5 | . . . 4 . . . . 5 . . . . . . . . Melee 1 | . . . . . . . . . . . . . . . 1 . Uniques/NPCs Destroyed . | . . . . . . . . . . . . . . . . . Combat | -11 -10 -9 -8 -7 -6 -6 -5 -5 -5 -4 -4 -4 -3 -3 -2 -2 -------- Run | Yrd Mat Mat Mat Fac Fac DSF Fac Upp War Pro Fac DSF Res Tes Res Qua Hostile Shots Fired 291 | . 10 8 21 18 . 15 . 12 . 2 . 28 6 2 34 135 Missed 97 | . 8 4 7 6 . 7 . 5 . 2 . 16 2 1 11 28 Hits 194 | . 2 4 14 12 . 8 . 7 . . . 12 4 1 23 107 Melee 17 | . . . 3 1 . 6 . . . . . . . . 7 . Projectile 177 | . 2 4 11 11 . 2 . 7 . . . 12 4 1 16 107 AOE 2 | . . . . . . 2 . . . . . . . . . . Critical Strikes 7 | . . . 2 1 . 1 . . . . . . . . 1 2 Actively Blocked 3 | . . . . . . . . . . . . . . . 1 2 Part Disruptions 1 | . . . . . . . . . . . . . . . 1 . Damage Taken 5861 | . 17 57 264 212 . 262 . 165 . . . 151 291 31 766 3645 Core 2265 | . 17 57 147 112 . 214 . 31 . . . 13 45 . 133 1496 Absorbed by Shields . | . . . . . . . . . . . . . . . . . Regen/Repaired (Parts) 2 | . . . . . . . . . . . . . . . 2 . Core Remaining (%) 88 | 100 93 85 73 84 . 74 . . . 96 . 98 . 96 . . Volleys Fired 66 | . . . 4 . . . . 3 1 . . . 2 . 32 24 Largest 2 | . . . 1 . . . . 1 1 . . . 1 . 2 2 Hottest 120 | . . . 33 . . . . 39 50 . . . 50 . 120 76 Shots Fired 94 | . . . 4 . . . . 3 1 . . . 2 . 43 41 Gun 63 | . . . . . . . . . . . . . . . 22 41 Cannon 24 | . . . . . . . . . 1 . . . 2 . 21 . Launcher 7 | . . . 4 . . . . 3 . . . . . . . . Special . | . . . . . . . . . . . . . . . . . Kinetic 63 | . . . . . . . . . . . . . . . 22 41 Thermal 19 | . . . . . . . . . . . . . . . 19 . Explosive 7 | . . . 4 . . . . 3 . . . . . . . . Electromagnetic . | . . . . . . . . . . . . . . . . . Entropic 5 | . . . . . . . . . 1 . . . 2 . 2 . Robot Hit Streak 7 | . . . . . . . . . . . . . . . 7 4 Robot Miss Streak 8 | . . . 2 . . . . . . . . . . . 4 8 Penetration Max 1 | . . . . . . . . . . . . . . . 1 1 Secondary Targets 1 | . . . . . . . . . . . . . . . 1 . Max Gunslinging Chain 1 | . . . . . . . . . . . . . . . 1 . Shots Hit Robots 52 | . . . . . . . . 5 . . 1 . . . 31 15 Core Hits 38 | . . . 5 . . . . 11 . . . . . . 11 11 Critical Kills 1 | . . . . . . . . . . . . . . . 1 . Critical Parts Destroyed 2 | . . . . . . . . . . . . . . . . 2 Critical Strikes 3 | . . . . . . . . . . . . . . . 1 2 Meltdown 1 | . . . . . . . . . . . . . . . 1 . Destroy 2 | . . . . . . . . . . . . . . . . 2 Melee Attacks 27 | . . . . 1 . . . 5 . . 2 . 8 4 7 . Impact 19 | . . . . 1 . . . . . . 2 . 8 4 4 . Slashing 5 | . . . . . . . . 5 . . . . . . . . Piercing 3 | . . . . . . . . . . . . . . . 3 . Sneak Attacks 7 | . . . . . . . . 5 . . 1 . . . 1 . Combat Hostiles . | . . . . . . . . . . . . . . . . . Follow-up Attacks . | . . . . . . . . . . . . . . . . . Damage Inflicted 3055 | . . . 230 . . . . 932 . . 80 . . 31 1215 567 Guns 1005 | . . . . . . . . . . . . . . . 438 567 Cannons 463 | . . . . . . . . . . . . . . . 463 . Explosions 731 | . . . 230 . . . . 501 . . . . . . . . Melee 825 | . . . . . . . . 431 . . 80 . . . 314 . Ramming 31 | . . . . . . . . . . . . . . 31 . . Kinetic 1005 | . . . . . . . . . . . . . . . 438 567 Thermal 463 | . . . . . . . . . . . . . . . 463 . Explosive 731 | . . . 230 . . . . 501 . . . . . . . . Electromagnetic . | . . . . . . . . . . . . . . . . . Impact 296 | . . . . . . . . . . . 80 . . . 216 . Slashing 431 | . . . . . . . . 431 . . . . . . . . Piercing 98 | . . . . . . . . . . . . . . . 98 . Highest Corruption 4 | . . . 4 . . . . . . . . . . . 2 2 Average Corruption 2 | . . . 4 . . . . . . . . . . . 1 2 Corruption Purged . | . . . . . . . . . . . . . . . . . Corruption Blocked . | . . . . . . . . . . . . . . . . . Effects 1 | . . . . . . . . . . . . . . . . 1 Data Loss (minor) 1 | . . . . . . . . . . . . . . . . 1 Overload Shots . | . . . . . . . . . . . . . . . . . Overflow Damage 307 | . . . . . . . . 187 . . 40 . . . 80 . Projectiles 18 | . . . . . . . . . . . . . . . 18 . Explosions 27 | . . . . . . . . 27 . . . . . . . . Melee 262 | . . . . . . . . 160 . . 40 . . . 62 . Knockbacks . | . . . . . . . . . . . . . . . . . Impact . | . . . . . . . . . . . . . . . . . Kinetic . | . . . . . . . . . . . . . . . . . Secondary . | . . . . . . . . . . . . . . . . . Self-Inflicted Damage 67 | . . . . . . . . 52 . . . . . 15 . . Shots 1 | . . . . . . . . 1 . . . . . . . . Rammed 2 | . . 1 . . . . . . . . . . . 1 . . Targets Rammed 2 | . . 1 . . . . . . . . . . . 1 . . Kicked . | . . . . . . . . . . . . . . . . . Crushed . | . . . . . . . . . . . . . . . . . Highest Temperature 765 | . . . . 10 . . . 48 54 28 98 83 . . 291 765 Average Temperature 145 | . . . . 10 . . . 21 27 13 48 55 . . 77 500 Received Heat Transfer 318 | . . 27 27 99 . . . . . . . 66 . 9 9 81 Effects 42 | . . . . . . . . . . . . . . . . 42 Shutdowns 10 | . . . . . . . . . . . . . . . . 10 Energy Bleed 2 | . . . . . . . . . . . . . . . . 2 Interference 8 | . . . . . . . . . . . . . . . . 8 Matter Decay 5 | . . . . . . . . . . . . . . . . 5 Short Circuit 3 | . . . . . . . . . . . . . . . . 3 Damage (minor) 3 | . . . . . . . . . . . . . . . . 3 Damage (major) 5 | . . . . . . . . . . . . . . . . 5 Damage (core) 6 | . . . . . . . . . . . . . . . . 6 Siege Activations . | . . . . . . . . . . . . . . . . . Martial Activations . | . . . . . . . . . . . . . . . . . Shielding Activations . | . . . . . . . . . . . . . . . . . Robots Disrupted . | . . . . . . . . . . . . . . . . . Combat Hostiles . | . . . . . . . . . . . . . . . . . Robots Corrupted 1 | . . . . . . . . . . . . . . . 1 . Combat Hostiles . | . . . . . . . . . . . . . . . . . Parts Fried . | . . . . . . . . . . . . . . . . . Impact Corruptions 2 | . . . . . . . . . . . 1 . . . 1 . Robots Melted 1 | . . . . . . . . . . . . . . . 1 . Combat Hostiles 1 | . . . . . . . . . . . . . . . 1 . Parts Melted 8 | . . . . . . . . . . . . . . . 5 3 Heat Transferred 407 | . . . . . . . . . . . . . . . 407 . Parts Sabotaged . | . . . . . . . . . . . . . . . . . Parts Stolen . | . . . . . . . . . . . . . . . . . Parts Stripped . | . . . . . . . . . . . . . . . . . Power Chain Reactions . | . . . . . . . . . . . . . . . . . Alert | -11 -10 -9 -8 -7 -6 -6 -5 -5 -5 -4 -4 -4 -3 -3 -2 -2 ------- Run | Yrd Mat Mat Mat Fac Fac DSF Fac Upp War Pro Fac DSF Res Tes Res Qua Maximum Alert Level . | . . . . . . . . . . . . . . . . . Low Security (%) 100 | 100 100 100 100 100 100 100 100 . . . 100 100 100 100 100 100 Level 1 . | . . . . . . . . . . . . . . . . . Level 2 . | . . . . . . . . . . . . . . . . . Level 3 . | . . . . . . . . . . . . . . . . . Level 4 . | . . . . . . . . . . . . . . . . . Level 5 . | . . . . . . . . . . . . . . . . . High Security . | . . . . . . . . . . . . . . . . . Max Security . | . . . . . . . . . . . . . . . . . Peak Influence 196 | . 15 9 128 68 28 12 . . . . 15 3 19 96 196 166 Initial 90 | . . 5 . 51 28 12 . . . . . 3 . 8 54 90 Average 53 | . 3 3 48 47 25 10 . . . . 4 2 6 21 65 97 Influence Increases 1403 | . 15 9 153 148 . . . 200 . . 23 . 61 136 479 179 Destroy 0b10 Robot/C 580 | . . . 80 . . . . 180 . . . . . 60 180 80 Destroy 0b10 Robot/NC 25 | . . . 5 . . . . . . . 5 . . 5 10 . Destroy Leader 86 | . . . 10 . . . . 20 . . . . . 2 44 10 Allied During Kill 42 | . . . . . . . . . . . . . . 16 26 . Successful Hack 91 | . . 9 9 28 . . . . . . 3 . 28 . . 14 Disable Machine 135 | . . . 15 15 . . . . . . 15 . . . 30 60 Anti-Garrison Action 150 | . . . . . . . . . . . . . . . 150 . Destroy Structure 84 | . . . 19 . . . . . . . . . 18 8 24 15 Partial Spotted 75 | . . . 15 15 . . . . . . . . . 45 . . Lose Combat Pursuer 135 | . 15 . . 90 . . . . . . . . 15 . 15 . Influence Decreases 1284 | . . 24 40 202 41 16 2 70 130 . 18 5 46 55 415 220 Entered New Map 362 | . . 10 . 62 31 6 2 . 130 . . 2 . 7 42 70 Time Decay 779 | . . 14 20 90 10 . . 70 . . 18 . 46 48 353 110 Lost Part 90 | . . . 20 20 . 10 . . . . . . . . . 40 Lost Ally 53 | . . . . 30 . . . . . . . 3 . . 20 . Squads Dispatched 12 | . . . 1 3 . 1 . . . . . 2 1 1 . 3 Investigation 1 | . . . . 1 . . . . . . . . . . . . Extermination 2 | . . . . 2 . . . . . . . . . . . . Reinforcement 7 | . . . 1 . . 1 . . . . . 2 1 1 . 1 Assault . | . . . . . . . . . . . . . . . . . Garrison 2 | . . . . . . . . . . . . . . . . 2 Intercept . | . . . . . . . . . . . . . . . . . Searches Triggered . | . . . . . . . . . . . . . . . . . Construction Impeded . | . . . . . . . . . . . . . . . . . Haulers Reinforced . | . . . . . . . . . . . . . . . . . Active Scanning Responses . | . . . . . . . . . . . . . . . . . Cargo Convoy Interrupts . | . . . . . . . . . . . . . . . . . Stealth | -11 -10 -9 -8 -7 -6 -6 -5 -5 -5 -4 -4 -4 -3 -3 -2 -2 --------- Run | Yrd Mat Mat Mat Fac Fac DSF Fac Upp War Pro Fac DSF Res Tes Res Qua Distress Signals 9 | . 1 . . 1 . . . . 1 . . . . 1 5 . Communications Jammed 3 | . . . . . . . . . . . . . . . 3 . Distress Signals 3 | . . . . . . . . . . . . . . . 3 . Times Spotted 103 | . 7 5 8 17 . 4 . 6 . 1 . 5 7 6 32 5 Peak Tracking Total 8 | . 6 5 5 6 . 4 . 5 . 1 . 5 6 5 8 5 Tactical Retreats 6 | . 1 . . 3 . . . . . . . . 1 . 1 . Traps | -11 -10 -9 -8 -7 -6 -6 -5 -5 -5 -4 -4 -4 -3 -3 -2 -2 ------- Run | Yrd Mat Mat Mat Fac Fac DSF Fac Upp War Pro Fac DSF Res Tes Res Qua Traps Triggered 2 | . . . . . . 2 . . . . . . . . . . Indirectly . | . . . . . . . . . . . . . . . . . Trap Hack Attempts . | . . . . . . . . . . . . . . . . . Triggered . | . . . . . . . . . . . . . . . . . Disarmed . | . . . . . . . . . . . . . . . . . Reprogrammed . | . . . . . . . . . . . . . . . . . Reused . | . . . . . . . . . . . . . . . . . Traps Extracted . | . . . . . . . . . . . . . . . . . Installed . | . . . . . . . . . . . . . . . . . Triggered . | . . . . . . . . . . . . . . . . . Machines | -11 -10 -9 -8 -7 -6 -6 -5 -5 -5 -4 -4 -4 -3 -3 -2 -2 ---------- Run | Yrd Mat Mat Mat Fac Fac DSF Fac Upp War Pro Fac DSF Res Tes Res Qua Machines Disabled 11 | . . . 1 1 . . . . 1 . 1 . . . 3 4 Max in Single Turn 1 | . . . 1 1 . . . . 1 . 1 . . . 1 1 Garrison Access 5 | . . . . . . . . . . . 1 . 1 1 2 . Machines Repaired . | . . . . . . . . . . . . . . . . . Machines Dismantled . | . . . . . . . . . . . . . . . . . Machines Sabotaged . | . . . . . . . . . . . . . . . . . Overloaded Fab Kills . | . . . . . . . . . . . . . . . . . Hacking | -11 -10 -9 -8 -7 -6 -6 -5 -5 -5 -4 -4 -4 -3 -3 -2 -2 --------- Run | Yrd Mat Mat Mat Fac Fac DSF Fac Upp War Pro Fac DSF Res Tes Res Qua Machines Accessed 25 | . 1 1 2 5 2 . . . 2 . 3 . 3 4 1 1 Terminals 15 | . 1 1 2 5 1 . . . . . 2 . 1 2 . . Fabricators 2 | . . . . . 1 . . . . . . . . 1 . . Repair Stations . | . . . . . . . . . . . . . . . . . Recycling Units . | . . . . . . . . . . . . . . . . . Scanalyzers 2 | . . . . . . . . . . . . . 1 . . 1 Garrison Access 4 | . . . . . . . . . . . 1 . 1 1 1 . Total Hacks 53 | . 1 1 3 15 3 . . . 2 . 3 . 9 10 2 4 Successful 23 | . . 1 1 4 1 . . . 2 . 2 . 6 4 1 1 Failed 29 | . 1 . 2 11 2 . . . . . 1 . 2 6 1 3 Catastrophic 5 | . 1 . . 1 . . . . . . . . . 2 1 . Database Lockouts 1 | . . . . . . . . . . . . . 1 . . . Manual 24 | . 1 1 1 14 1 . . . . . 1 . . 1 . 4 Terminals 29 | . 1 1 3 15 2 . . . . . 2 . 3 2 . . Fabricators 5 | . . . . . 1 . . . . . . . . 4 . . Repair Stations . | . . . . . . . . . . . . . . . . . Recycling Units . | . . . . . . . . . . . . . . . . . Scanalyzers 9 | . . . . . . . . . . . . . 5 . . 4 Garrison Access 8 | . . . . . . . . . . . 1 . 1 4 2 . Terminal Hacks 8 | . . 1 1 1 1 . . . 2 . 1 . 1 . . . Record 1 | . . . . 1 . . . . . . . . . . . . Open Door 2 | . . . . . . . . . 2 . . . . . . . Open DSF 2 | . . . . . 1 . . . . . 1 . . . . . Level Access Points 2 | . . 1 1 . . . . . . . . . . . . . Branch Access Points 1 | . . . . . . . . . . . . . 1 . . . Fabricator Hacks 2 | . . . . . . . . . . . . . . 2 . . Network Status 1 | . . . . . . . . . . . . . . 1 . . Load Schematic 1 | . . . . . . . . . . . . . . 1 . . Repair Station Hacks . | . . . . . . . . . . . . . . . . . Recycling Unit Hacks . | . . . . . . . . . . . . . . . . . Scanalyzer 4 | . . . . . . . . . . . . . 4 . . . Insert Component 1 | . . . . . . . . . . . . . 1 . . . Analyze 1 | . . . . . . . . . . . . . 1 . . . Retrieve Study 2 | . . . . . . . . . . . . . 2 . . . Garrison Access Hacks 4 | . . . . . . . . . . . 1 . 1 1 1 . Seal Access 4 | . . . . . . . . . . . 1 . 1 1 1 . Unauthorized Hacks 5 | . . . . 3 . . . . . . . . . 1 . 1 Terminals 3 | . . . . 3 . . . . . . . . . . . . Assimilate 3 | . . . . 3 . . . . . . . . . . . . Fabricators 1 | . . . . . . . . . . . . . . 1 . . Liberate 1 | . . . . . . . . . . . . . . 1 . . Repair Stations . | . . . . . . . . . . . . . . . . . Recycling Units . | . . . . . . . . . . . . . . . . . Scanalyzers 1 | . . . . . . . . . . . . . . . . 1 Researchers 1 | . . . . . . . . . . . . . . . . 1 Garrison Access . | . . . . . . . . . . . . . . . . . Data Cores Recovered . | . . . . . . . . . . . . . . . . . Used . | . . . . . . . . . . . . . . . . . Hacking Detections 14 | . 1 . 1 5 1 . . . . . . . 1 3 1 1 Full Trace Events 1 | . . . . 1 . . . . . . . . . . . . Feedback Events . | . . . . . . . . . . . . . . . . . Feedback Blocked . | . . . . . . . . . . . . . . . . . Robot Schematics Acquired . | . . . . . . . . . . . . . . . . . Robots Built . | . . . . . . . . . . . . . . . . . Authchips . | . . . . . . . . . . . . . . . . . Time . | . . . . . . . . . . . . . . . . . Total Robot Build Rating . | . . . . . . . . . . . . . . . . . Part Schematics Acquired 1 | . . . . . . . . . . . . . 1 . . . Parts Built . | . . . . . . . . . . . . . . . . . Authchips . | . . . . . . . . . . . . . . . . . Time . | . . . . . . . . . . . . . . . . . Total Part Build Rating . | . . . . . . . . . . . . . . . . . Part Studies Acquired 2 | . . . . . . . . . . . . . 2 . . . Parts Repaired . | . . . . . . . . . . . . . . . . . Time . | . . . . . . . . . . . . . . . . . Parts Recycled . | . . . . . . . . . . . . . . . . . Recycled Matter . | . . . . . . . . . . . . . . . . . Retrieved Matter . | . . . . . . . . . . . . . . . . . Retrieved Components . | . . . . . . . . . . . . . . . . . Parts Scanalyzed 1 | . . . . . . . . . . . . . 1 . . . Part Schematics Acquired 1 | . . . . . . . . . . . . . 1 . . . Parts Damaged . | . . . . . . . . . . . . . . . . . Bothacking | -11 -10 -9 -8 -7 -6 -6 -5 -5 -5 -4 -4 -4 -3 -3 -2 -2 ------------ Run | Yrd Mat Mat Mat Fac Fac DSF Fac Upp War Pro Fac DSF Res Tes Res Qua Used RIF Installer . | . . . . . . . . . . . . . . . . . Robots Hacked . | . . . . . . . . . . . . . . . . . Non-combat . | . . . . . . . . . . . . . . . . . Combat . | . . . . . . . . . . . . . . . . . Robot Hacks Applied . | . . . . . . . . . . . . . . . . . Relay Couplers Released 1 | . . . . . . . . . . . . . . . 1 . Machine Destruction 1 | . . . . . . . . . . . . . . . 1 . Fabnet Peak Effective % . | . . . . . . . . . . . . . . . . . Robots Rewired 7 | . . . . . . . . . 5 . 1 . . 1 . . Allies Hacked 1 | . . . . 1 . . . . . . . . . . . . Hacks Repelled . | . . . . . . . . . . . . . . . . . Allies | -11 -10 -9 -8 -7 -6 -6 -5 -5 -5 -4 -4 -4 -3 -3 -2 -2 -------- Run | Yrd Mat Mat Mat Fac Fac DSF Fac Upp War Pro Fac DSF Res Tes Res Qua Total Allies 10 | . . . . 3 . . . . 5 . 1 . . 1 . . Largest Group 5 | . . . . 2 . . . . 5 . . 1 . 1 1 . Highest-Rated Group 238 | . . . . 33 . . . . 238 . . 47 . 148 138 . Highest-Rated Ally 148 | . . . . 26 . . . . 64 . . 47 . 148 138 . Total Orders 2 | . . . . . . . . . . 2 . . . . . . EXPLORE 1 | . . . . . . . . . . 1 . . . . . . RETURN 1 | . . . . . . . . . . 1 . . . . . . Ally Attacks 23 | . . . . . . . . . 5 . . 3 . 6 9 . Total Damage 1125 | . . . . . . . . . 186 . . 98 . 447 394 . Kills 8 | . . . . . . . . . . . . . . 4 4 . Allies Corrupted . | . . . . . . . . . . . . . . . . . Allies Melted . | . . . . . . . . . . . . . . . . . Intel | -11 -10 -9 -8 -7 -6 -6 -5 -5 -5 -4 -4 -4 -3 -3 -2 -2 ------- Run | Yrd Mat Mat Mat Fac Fac DSF Fac Upp War Pro Fac DSF Res Tes Res Qua Active Infowar (turns) 2406 | . . . . 12 25 33 18 204 293 186 45 40 136 114 1094 206 Optics 773 | . . . . . 21 33 18 204 293 185 18 . . . 1 . Sensors 1595 | . . . . . . . . . . . 26 29 129 111 1094 206 Machine Analysis 446 | . . . . 11 25 33 18 204 155 . . . . . . . Cloaking 1164 | . . . . . . . . . 122 186 45 40 136 114 521 . Jamming 776 | . . . . 1 . . . 32 135 186 45 40 7 3 327 . Robot Analysis Total . | . . . . . . . . . . . . . . . . . Derelict Logs Recovered 2 | . . . . . . . . 1 . 1 . . . . . . Drone Launches 1 | . . . . . . . . . . 1 . . . . . . Drone Recoveries . | . . . . . . . . . . . . . . . . . Exploration | -11 -10 -9 -8 -7 -6 -6 -5 -5 -5 -4 -4 -4 -3 -3 -2 -2 ------------- Run | Yrd Mat Mat Mat Fac Fac DSF Fac Upp War Pro Fac DSF Res Tes Res Qua Turns Passed 2774 | 10 29 57 72 191 25 33 18 204 293 186 45 40 136 114 1094 227 Spaces Moved 4286 | 19 56 111 108 513 69 88 48 313 522 300 122 62 162 230 1441 122 Core 271 | 19 56 111 79 . . 5 . . . . . . . . 1 . Treads . | . . . . . . . . . . . . . . . . . Legs 250 | . . . . . . . . . . . . . . . 128 122 Wheels . | . . . . . . . . . . . . . . . . . Hover . | . . . . . . . . . . . . . . . . . Flight 3765 | . . . 29 513 69 83 48 313 522 300 122 62 162 230 1312 . Fastest Speed 12 | 50 50 50 37 30 30 30 35 21 18 18 18 17 22 22 12 105 Average Speed 28 | 50 50 50 46 33 30 35 35 30 21 18 18 20 22 22 23 113 Slowest Speed 300 | 50 50 50 50 35 30 100 35 102 93 18 18 25 22 22 300 114 Overloaded Moves 12 | . . . . . . . . . . . . 12 . . . . Propulsion Burnouts . | . . . . . . . . . . . . . . . . . Robots Hopped 50 | . . . 4 12 1 . . . 4 . . 2 1 . 26 . Potential Cave-ins 3 | . . . 2 . . . . . . . . . . . 1 . Cave-ins Triggered 2 | . . . 1 . . . . . . . . . 1 . . . Exploration Rate (%) 30 | 3 17 23 19 25 4 91 2 44 75 50 3 75 8 31 34 14 Regions Visited 16 Branch Regions 5 Pre-discovered Areas 2 | . . . . . . . . 1 . 1 . . . . . . Known Exits Taken 7 | . . 1 1 . 1 . . . . . 1 . 1 1 1 . Unknown Exits Taken 7 | 1 1 . . 1 . . 1 1 1 1 . . . . . . Scrap Searched 3 | . . . . . . . . 1 . 2 . . . . . . Spaces Dug 23 | . . . 9 . . . . . . . . . 9 3 . 2 Terrain Destroyed 88 | . . . 31 . . . . 25 . . . . 10 3 8 11 Melee 11 | . . . . . . . . . . . . . 8 3 . . Projectile 21 | . . . . . . . . . . . . . 2 . 8 11 AOE 56 | . . . 31 . . . . 25 . . . . . . . . Terrain Rammed . | . . . . . . . . . . . . . . . . . Walls Destroyed . | . . . . . . . . . . . . . . . . . Machines Disabled . | . . . . . . . . . . . . . . . . . Actions | -11 -10 -9 -8 -7 -6 -6 -5 -5 -5 -4 -4 -4 -3 -3 -2 -2 --------- Run | Yrd Mat Mat Mat Fac Fac DSF Fac Upp War Pro Fac DSF Res Tes Res Qua Total 5634 | 19 56 111 121 517 70 90 48 405 702 431 140 87 244 285 2138 170 Wait 969 | . . . . 4 . 2 . 68 75 122 10 19 67 43 537 22 Move 4186 | 18 55 110 99 490 66 87 47 312 514 299 121 57 160 230 1399 122 Hop 35 | . . . 4 10 1 . . . 3 . . 2 . . 15 . Pick Up 62 | 1 1 . 5 3 1 . . 2 11 2 . 1 2 4 29 . Fast Attach 65 | . . . 4 4 2 . . 7 12 2 2 2 . . 30 . Attach 42 | . . . 1 4 . . 1 4 4 2 1 . 4 . 19 2 Detach 21 | . . . 1 1 . 1 . 2 3 . 1 2 . . 10 . Swap 16 | . . . . . . . . 2 2 1 . 1 1 2 7 . Drop 84 | . . . 3 . . . . . 21 3 1 3 . . 53 . Fire 66 | . . . 4 . . . . 3 1 . . . 2 . 32 24 Melee 27 | . . . . 1 . . . 5 . . 2 . 8 4 7 . Ram 1 | . . 1 . . . . . . . . . . . . . . Kick . | . . . . . . . . . . . . . . . . . Crush . | . . . . . . . . . . . . . . . . . Escape Stasis . | . . . . . . . . . . . . . . . . . Rewire 60 | . . . . . . . . . 56 . 2 . . 2 . . Trap . | . . . . . . . . . . . . . . . . . Miscellaneous . | . . . . . . . . . . . . . . . . . Route ------- -11/Scrapyard -10/Materials -9/Materials (discovered 3 exits: *Mat x3) -8/Materials (discovered 3 exits: *Fac x3) -7/Factory -6/Factory -6/DSF -5/Factory -5/Upper Caves (discovered 2 exits: [*Upp] / *War) -5/Warlord -4/Proximity Caves -4/Factory -4/DSF -3/Research (discovered 2 exits: *Tes x2) -3/Testing -2/Research (discovered 2 exits: *Acc / *Qua) -2/Quarantine History --------- Turn | Location | Event 5 | -11/Scrapyard | Discovered new exit (range 15) 11 | -11/Scrapyard | Entered Materials 37 | -10/Materials | Discovered new exit (range 7) 40 | -10/Materials | Entered another Materials area 40 | -9/Materials | Evolved 2 slots: Propulsion x1, Utility x1 67 | -9/Materials | Identified exit to Materials 97 | -9/Materials | Entered another Materials area 97 | -8/Materials | Evolved 2 slots: Propulsion x1, Utility x1 132 | -8/Materials | Identified exit to Factory 150 | -8/Materials | Crushed by falling debris 169 | -8/Materials | Entered Factory 169 | -7/Factory | Evolved 2 slots: Propulsion x1, Utility x1 356 | -7/Factory | Discovered new exit (range 12) 360 | -7/Factory | Entered another Factory area 360 | -6/Factory | Evolved 2 slots: Propulsion x1, Utility x1 385 | -6/Factory | Identified exit to DSF 385 | -6/Factory | Entered DSF 406 | -6/DSF | Additional patrols routed to DSF 411 | -6/DSF | Discovered new exit (range 14) 418 | -6/DSF | Entered Factory 418 | -5/Factory | Evolved 2 slots: Power x1, Propulsion x1 433 | -5/Factory | Discovered new exit (range 8) 436 | -5/Factory | Entered Upper Caves 438 | -5/Upper Caves | Learned location of Warlord (-5) 635 | -5/Upper Caves | Discovered new exit (range 9) 639 | -5/Upper Caves | A Derelict revealed a hidden shortcut to "reach the base" 640 | -5/Upper Caves | Entered Warlord 724 | -5/Warlord | Visited the Vortex Lab 725 | -5/Warlord | Found Prototype Energy Cannon 726 | -5/Warlord | Found Prototype Energy Cannon 726 | -5/Warlord | Identified Vortex Cannon (x2) 746 | -5/Warlord | Warlord's base attacked by MAIN.C 775 | -5/Warlord | Found Prototype Hackware 775 | -5/Warlord | Identified Ghost Barrier 780 | -5/Warlord | Found Prototype Reactor 780 | -5/Warlord | Identified Vortex Chain Reactor 802 | -5/Warlord | Found Prototype Device 802 | -5/Warlord | Identified Thermal Barrier 807 | -5/Warlord | Found Prototype Device 807 | -5/Warlord | Identified Exp. Cloaking Device 828 | -5/Warlord | Met Warlord 852 | -5/Warlord | Opened side exit 932 | -5/Warlord | Discovered new exit (range 9) 933 | -5/Warlord | Entered Proximity Caves 958 | -4/Proximity Caves | Learned location of Testing (-3) 1110 | -4/Proximity Caves | Spotted B-86 Titan 1114 | -4/Proximity Caves | Discovered new exit (range 10) 1119 | -4/Proximity Caves | Entered Factory 1119 | -4/Factory | Evolved 2 slots: Propulsion x1, Utility x1 1154 | -4/Factory | Identified exit to DSF 1164 | -4/Factory | Entered DSF 1164 | -4/DSF | Accompanied by 1 ally 1180 | -4/DSF | Build established: Hacker-Sprinter 1196 | -4/DSF | Additional patrols routed to DSF 1201 | -4/DSF | Discovered new exit (range 16) 1204 | -4/DSF | Identified exit to Research 1204 | -4/DSF | Entered Research 1204 | -3/Research | Evolved 2 slots: Propulsion x2 1234 | -3/Research | Central database locked down 1281 | -3/Research | Identified exit to Testing 1335 | -3/Research | Crushed by falling debris 1340 | -3/Research | Entered Testing 1404 | -3/Testing | Discovered new exit (range 8) 1411 | -3/Testing | Rewired PH-Q4ZY7GBL3B 1435 | -3/Testing | Identified exit to Research 1454 | -3/Testing | Entered Research 1454 | -2/Research | Accompanied by 1 ally 1454 | -2/Research | Warlord forces began assault on 0b10 1454 | -2/Research | Evolved 2 slots: Utility x2 1552 | -2/Research | Met up with Warlord 1554 | -2/Research | Found Adv. Powered Armor 1558 | -2/Research | Discovered new exit (range 16) 1564 | -2/Research | Research machine network offline 1566 | -2/Research | Identified exit to Access 1862 | -2/Research | Spotted B-90 Cyclops 1871 | -2/Research | Discovered new exit (range 8) 1919 | -2/Research | Found Prototype Device 1919 | -2/Research | Identified Adv. Kinecellerator 1925 | -2/Research | Spotted B-90 Cyclops 1955 | -2/Research | Borebot progress halted 2200 | -2/Research | Build established: Scavenger-Sprinter 2319 | -2/Research | Spotted Executioner 2322 | -2/Research | Spotted Executioner 2344 | -2/Research | Found Prototype Processor 2344 | -2/Research | Identified Exp. Core Analyzer 2367 | -2/Research | Found Exp. Core Analyzer 2390 | -2/Research | Spotted Striker 2396 | -2/Research | Spotted Executioner 2418 | -2/Research | Destroyed Striker 2420 | -2/Research | Met DD-05H 2449 | -2/Research | Spotted Striker 2454 | -2/Research | Warlord invited to help at Command 2454 | -2/Research | Given Cave Seal Controls access code 2501 | -2/Research | Found Exp. Core Analyzer 2547 | -2/Research | Identified exit to Quarantine 2548 | -2/Research | Entered Quarantine 2635 | -2/Quarantine | Garrison activated, responded to threat 2657 | -2/Quarantine | Build established: Scavenger-Mutant 2665 | -2/Quarantine | Lost 3 allies 2702 | -2/Quarantine | Cryocooling Duct disabled 2705 | -2/Quarantine | Cryocooling Duct disabled 2717 | -2/Quarantine | Ambient heat levels rising (+20) 2717 | -2/Quarantine | Non-combat units ordered to evacuate 2720 | -2/Quarantine | Ambient heat levels rising (+20) 2720 | -2/Quarantine | Combat units ordered to evacuate 2753 | -2/Quarantine | Core integrity fell below 50% 2771 | -2/Quarantine | Core integrity fell below 20% 2776 | -2/Quarantine | Core destroyed Last Messages --------------- 02769_ Overheating: Enh. Biometal Leg damaged (-72). 02770_ Slug penetrates H-88 Terminator. 02771_ Overheating: Core damaged (-174). 02771_ Penetrated by Slug. 02772_ Power failure, Quantum Reactor shutdown. 02772_ Overheating: System interference. 02772_ Helical Railgun temporarily disabled. 02772_ Exp. Core Analyzer temporarily disabled. 02772_ Acquired 92 matter. 02773_ H-88 Terminator heat spikes uncontrollably. 02774_ Power failure, Lgt. Quantum Reactor shutdown. 02774_ Overheating: Energy bleed (-96). 02775_ Overheating: Core damaged (-188). 02775_ H-88 Terminator heat damages core (-22). 02775_ Slug penetrates Wall. 02775_ Helical Railgun destroyed. 02776_ Overheating: Core damaged (-203). Map ----- +----------------------------------------------------+ | #??????????????????????????????? | | #??????????????????????????????? | | ! #??????????????????????????????? | | %[ #??????????????????????????????? | | ########## *%=#??????????????????????????????? | | # ! ! # =! #???###????????????????????????? | | # # #??? #???????????????????????? | | # #%[$ #??? #???????????????????????? | | # "" #$%$ #### #????????????????????????? | | # """ #!$$ #####????????????????????? | | + S" # ! ## ??? ???????????????? | | # """ # ## ? ????????????????? | | # """ # ## """ """?????????????? | | # # """ ## """ """"" ???????????? | | ############## """ # #??????????? | | ?######?# "" # """ """ #??????????? | | ?# """?# + "" "" """ #??????????? | | ?# """ # # #??????????? | | ?# """ # ####+#### #??????????? | | ?# + ## ^ # #??????????? | | ?# # ## """ #*= #??????????? | | ?# + + """ #[%= #??????????? | | ?########+##### ## """ ##[#########????????????? | | ????# #???##### """ ##!##???????????????????? | | ????# #???????# """ #;h[#???????????????????? | | ????#""!""#???????# """!@[=#[ #???????????????? | | ????#"""""#???????# "" #=##????#???????????????? | | ????#"""""#???????# ## ????????????????????? | | ????#######???????########?# #???????????????????? | | | | | | | | | | | | | | | | | | | | | | | | | | | | | | | | | | | | | | | | | | | +----------------------------------------------------+ Best States ------------- Heat Dissipation 76 Coolant Potential 120 Energy Generation 55 Energy Capacity 700 Matter Stores 300 Matter Capacity 300 Sight Range 22 Robot Scan Range 16 Terrain Scan Density 10 Jamming Range 16 Cloak Strength 4 Additional Mass Support 6 Corruption Block 8 Armor Coverage 1000 Melee Speed Boost 20 Evasion (%) 77 Targeting Accuracy 8 Melee Accuracy 8 Target Analysis 8 Core Analysis 12 Kinecelleration 50 Offensive Hacking 11 Defensive Hacking 20 Item Schematics ----------------- Exp. Coolant Injector | -3/Research | Scanalyzed Robot Schematics ------------------ None Fabricated ------------ Nothing Repaired ---------- Nothing Studied --------- Field Propulsion Drive | -3/Research | Hacked Impulse Thruster Array | -3/Research | Hacked Alien Tech Used ----------------- None Achievements -------------- Metal Spider Challenges ------------ None Game ------ Seed StormMomentumBasin Manual? 0 Play Time 00:58:32 Cumulative 540.9 hours Start 2025.11.14 @ 18:10:29 End 2025.11.14 @ 19:11:27 Sessions 1 Manual Loads 0 Difficulty Rogue Special Mode None Game No. 875 Rogue 720 Adventurer 148 Explorer 7 Win Type - Total 26 Types 20/1/4/1/0/0/0/0/0/0 Lore% 78 Gallery% 80 Achievement% 65 Wizard Run 0 Options --------- Layout 1 ASCII 0 Keyboard 0 Movement Numpad Keybinds 0 Fullscreen 2 Font 24/Smallcaps Map View 50x35 Zoom Use 0% Tactical HUD 1 Map Filters NONE Filters NONE Steam 1 RUN: 73a84c38-ac1a-4713-b132-a127459019a6